fUSD/lending_fUSD_20241106
["ID","MTS","AMOUNT","RATE_DAILY","PERIOD"]
[341419452,1730869842218,-197.77931098,0.00037899,2]
[341419453,1730869842230,-3755.35055703,0.00037899,2]
[341419454,1730869842242,-181.99734622,0.000379,2]
[341419455,1730869842253,-5134.53725576,0.000379,2]
[341419456,1730869842263,-150.0,0.00037967,2]
[341419457,1730869842273,-150.0,0.00037971,2]
[341419458,1730869842283,-150.0,0.00037972,2]
[341419459,1730869842294,-159.525258,0.00037973,5]
[341419460,1730869842303,-500.0,0.00037973,5]
[341419461,1730869842316,-154.32781955,0.00037973,5]
[341419462,1730869842325,-512.19995754,0.00037973,5]
[341419463,1730869842334,-503.07357796,0.00037973,5]
[341419464,1730869842343,-500.0,0.00037973,5]
[341419465,1730869842352,-500.0,0.00037973,5]
[341419466,1730869842361,-500.0,0.00037973,5]
[341419467,1730869842371,-150.0,0.00037979,2]
[341419468,1730869842380,-150.0,0.00037988,2]
[341419469,1730869842390,-500.0,0.00037989,15]
[341419470,1730869842399,-195.55030685,0.00037989,15]
[341419471,1730869842408,-500.0,0.00037989,15]
[341419472,1730869842418,-500.0,0.00037989,15]
[341419473,1730869842427,-192.42,0.00037989,14]
[341419474,1730869842437,-500.0,0.00037989,14]
[341419475,1730869842446,-507.36431818,0.00037989,14]
[341419476,1730869842456,-500.0,0.00037989,14]
[341419477,1730869842465,-500.0,0.00037989,14]
[341419478,1730869842475,-501.51485468,0.00037989,14]
[341419479,1730869842484,-500.0,0.00037989,14]
[341419480,1730869842493,-500.0,0.00037989,14]
[341419481,1730869842502,-616.09,0.00037989,14]
[341419482,1730869842512,-500.0,0.00037989,14]
[341419483,1730869842523,-500.0,0.00037989,14]
[341419484,1730869842533,-500.0,0.00037989,14]
[341419485,1730869842543,-394.14,0.00037989,14]
[341419486,1730869842553,-500.0,0.00037989,14]
[341419487,1730869842565,-500.0,0.00037989,14]
[341419488,1730869842575,-500.0,0.00037989,14]
[341419489,1730869842584,-500.0,0.00037989,14]
[341419490,1730869842593,-500.0,0.00037989,14]
[341419491,1730869842602,-500.0,0.00037989,14]
[341419492,1730869842612,-500.0,0.00037989,14]
[341419493,1730869842622,-500.0,0.00037989,14]
[341419494,1730869842632,-500.0,0.00037989,14]
[341419495,1730869842642,-171.38,0.00037989,14]
[341419496,1730869842654,-500.0,0.00037989,14]
[341419497,1730869842663,-500.0,0.00037989,14]
[341419498,1730869842672,-389.97,0.00037989,14]
[341419500,1730869842682,-500.0,0.00037989,14]
[341419501,1730869842693,-500.0,0.00037989,14]
[341419502,1730869842704,-500.0,0.00037989,14]
[341419503,1730869842716,-500.0,0.00037989,14]
[341419504,1730869842725,-500.0,0.00037989,14]
[341419505,1730869842735,-255.9,0.00037989,14]
[341419506,1730869842744,-500.0,0.00037989,14]
[341419507,1730869842753,-456.9,0.00037989,14]
[341419509,1730869842764,-500.0,0.00037989,14]
[341419510,1730869842773,-500.0,0.00037989,14]
[341419512,1730869842782,-500.0,0.00037989,14]
[341419514,1730869842793,-267.78621843,0.00037989,14]
[341419516,1730869842802,-150.0,0.00037989,14]
[341419518,1730869842816,-150.0,0.00037989,14]
[341419520,1730869842829,-150.0,0.00037989,14]
[341419522,1730869842839,-500.0,0.00037989,14]
[341419524,1730869842849,-500.0,0.00037989,14]
[341419526,1730869842859,-500.0,0.00037989,14]
[341419528,1730869842869,-500.0,0.00037989,14]
[341419530,1730869842879,-500.0,0.00037989,14]
[341419531,1730869842888,-500.0,0.00037989,14]
[341419532,1730869842897,-500.0,0.00037989,14]
[341419534,1730869842907,-500.0,0.00037989,14]
[341419536,1730869842916,-500.0,0.00037989,14]
[341419537,1730869842925,-500.0,0.00037989,14]
[341419538,1730869842936,-500.0,0.00037989,14]
[341419539,1730869842946,-500.0,0.00037989,14]
[341419540,1730869842956,-500.0,0.00037989,14]
[341419541,1730869842966,-500.0,0.00037989,14]
[341419542,1730869842975,-500.0,0.00037989,14]
[341419543,1730869842984,-500.0,0.00037989,14]
[341419544,1730869842994,-506.80931579,0.00037989,14]
[341419545,1730869843003,-1000.0,0.00037989,120]
[341419546,1730869843014,-500.0,0.00037989,2]
[341419547,1730869843024,-5311.05,0.00037989,120]
[341419548,1730869843033,-500.0,0.00037989,14]
[341419549,1730869843042,-500.0,0.00037989,14]
[341419550,1730869843052,-500.0,0.00037989,14]
[341419551,1730869843069,-500.0,0.00037989,14]
[341419552,1730869843079,-500.0,0.00037989,14]
[341419553,1730869843088,-227.9,0.00037989,14]
[341419554,1730869843097,-33819.81001874,0.0003799,5]
[341419555,1730869843111,-550.50093868,0.0003799,5]
[341419556,1730869843122,-122203.18100043,0.0003799,5]
[341419557,1730869843133,-2101.89478462,0.0003799,5]
[341419558,1730869843144,-73137.52343348,0.0003799,5]
[341419561,1730869843309,-500.0,0.00037808,14]
[341419562,1730869843324,-361.8,0.000379,2]
[341419563,1730869843333,-412.98,0.00037979,3]
[341419564,1730869843342,-9233.66139968,0.0003799,5]
[341419565,1730869843354,-2973.85713043,0.0003799,5]
[341419566,1730869843364,-12719.90632377,0.0003799,5]
[341419567,1730869843382,-1851.5,0.0003799,5]
[341419568,1730869843465,-50216.37477363,0.0003799,5]
[341419569,1730869843477,-4596.51671542,0.0003799,5]
[341419570,1730869843489,-5944.09258997,0.0003799,5]
[341419571,1730869843501,-5992.2432,0.0003799,5]
[341419572,1730869843514,-2329.21122541,0.0003799,5]
[341419602,1730869846529,-6692.03425971,0.00037751,15]
[341419603,1730869846538,-500.0,0.00037808,14]
[341419604,1730869846548,-3973.05855469,0.000379,2]
[341419606,1730869878773,2208.0,0.000244,2]
[341419607,1730869885489,178.643,0.0003,2]
[341419609,1730870022459,-250.0,0.00036962,120]
[341419611,1730870054014,-1316.98,0.00036876,61]
[341419612,1730870070554,-5089.75,0.00037989,120]
[341419613,1730870070677,-3500.0,0.00038,120]
[341419614,1730870070776,-2521.35574155,0.00038,120]
[341419616,1730870091804,156.29,0.00015342,2]
[341419617,1730870097128,-22605.26841914,0.00038,120]
[341419618,1730870100305,-22605.26841914,0.00038,120]
[341419619,1730870104809,-22605.26841914,0.00038,120]
[341419620,1730870108101,-22605.26841914,0.00038,120]
[341419621,1730870130442,-22605.26841914,0.00038,120]
[341419622,1730870206759,178.78,0.00036294,120]
[341419625,1730870321351,167.00724587,0.00034849,120]
[341419626,1730870442273,150.0,0.000165,3]
[341419629,1730870708198,85382.57272818,0.00016,2]
[341419631,1730870851124,-1013.62840696,0.00020999,2]
[341419632,1730870851147,-450.0,0.00020999,2]
[341419633,1730870851169,-250.0,0.00021,2]
[341419634,1730870851205,-411.46476877,0.00021,2]
[341419635,1730870851226,-16812.38932436,0.00021,10]
[341419638,1730870885965,120085.03072289,0.00015,2]
[341419642,1730870920617,433.63,0.0003476,120]
[341419658,1730870945339,-500.0,0.00020973,2]
[341419659,1730870945362,-123979.8744,0.00021,10]
[341419660,1730870947119,-7205.13983362,0.00021,10]
[341419661,1730870947142,-33183.21012638,0.00022,2]
[341419662,1730870949265,-1199.67750029,0.00022,2]
[341419663,1730870949289,-4841.0825926,0.000224,2]
[341419664,1730870949311,-1164.27248835,0.000225,2]
[341419665,1730870949335,-4841.08259256,0.00024122,2]
[341419666,1730870949357,-17600.61595396,0.00025,2]
[341419667,1730870949379,-21857.33980692,0.00025,2]
[341419668,1730870949403,-1742.00459706,0.00025,2]
[341419669,1730870949426,-2897.89955974,0.00025,2]
[341419670,1730870949448,-486.27526099,0.00025,2]
[341419671,1730870949469,-3220.26176096,0.000251,2]
[341419672,1730870949492,-4841.08259256,0.00025844,2]
[341419673,1730870949514,-4305.84875749,0.00026,2]
[341419674,1730870949535,-4433.65,0.00026,2]
[341419675,1730870949555,-518.22394169,0.0002604,2]
[341419676,1730870949576,-11907.84844604,0.000264,2]
[341419677,1730870949599,-4841.08259256,0.00027567,2]
[341419678,1730870949620,-161.05,0.0002903,2]
[341419679,1730870949643,-4841.08259256,0.00029289,15]
[341419680,1730870949669,-452.98225,0.0003,2]
[341419681,1730870949692,-235.6595,0.0003,2]
[341419682,1730870949716,-4841.08259256,0.00031011,15]
[341419683,1730870949739,-4841.08259256,0.00032733,15]
[341419684,1730870950238,-500.0,0.00032876,2]
[341419685,1730870950263,-500.0,0.00032876,2]
[341419686,1730870950284,-500.0,0.00032876,2]
[341419687,1730870950305,-500.0,0.00032876,2]
[341419688,1730870950326,-500.0,0.00032876,2]
[341419689,1730870950347,-286.56491854,0.00032876,2]
[341419690,1730870950370,-160.66072956,0.00032877,2]
[341419691,1730870950391,-2718.61,0.00032877,2]
[341419692,1730870950414,-452.98225,0.00032884,2]
[341419693,1730870950436,-235.6595,0.00033199,2]
[341419694,1730870950457,-690.45,0.00033997,2]
[341419695,1730870950478,-150.0,0.00034207,2]
[341419696,1730870950503,-4841.08259256,0.00034456,15]
[341419697,1730870951022,250.0,0.00034449,120]
[341419735,1730871032292,-150.0,0.00034561,2]
[341419736,1730871032302,-150.0,0.00034672,2]
[341419737,1730871032313,-456.36,0.0003507,120]
[341419738,1730871032322,-474.89,0.00035115,2]
[341419739,1730871032332,-250.0,0.00035342,2]
[341419740,1730871032342,-204.22,0.00035373,2]
[341419741,1730871032351,-150.0,0.00035376,2]
[341419742,1730871032362,-150.0,0.0003547,2]
[341419743,1730871032371,-23900.0,0.0003554,2]
[341419744,1730871032380,-200.0,0.00035583,7]
[341419745,1730871032390,-474.89,0.00035679,2]
[341419746,1730871032400,-150.0,0.00035795,2]
[341419747,1730871032410,-5969.86,0.00035842,61]
[341419748,1730871032419,-354.86,0.0003587,2]
[341419749,1730871032428,-834.395821,0.00036,120]
[341419750,1730871032438,-275.81919451,0.00036,2]
[341419751,1730871032448,-163.81,0.00036014,120]
[341419752,1730871032457,-150.0,0.000361,2]
[341419753,1730871032467,-250.0,0.00036121,2]
[341419754,1730871032477,-180.93,0.00036146,2]
[341419755,1730871032488,-4841.08259256,0.00036178,15]
[341419756,1730871032498,-1975.078,0.00036238,44]
[341419757,1730871032508,-474.89,0.00036243,2]
[341419758,1730871032517,-150.0,0.00036254,2]
[341419759,1730871032528,-690.45,0.0003626,2]
[341419760,1730871032537,-150.0,0.00036261,2]
[341419761,1730871032551,-150.0,0.00036346,2]
[341419762,1730871032563,-150.0,0.00036365,2]
[341419763,1730871032573,-150.0,0.00036365,2]
[341419764,1730871032582,-150.0,0.00036571,2]
[341419765,1730871032592,-223.0,0.00036619,2]
[341419766,1730871032602,-223.0,0.00036638,2]
[341419767,1730871032612,-150.0,0.00036644,2]
[341419768,1730871032621,-223.0,0.00036657,2]
[341419769,1730871032630,-223.0,0.00036676,2]
[341419770,1730871032640,-2216.92602385,0.00036686,2]
[341419771,1730871032649,-223.0,0.00036696,2]
[341419772,1730871032658,-223.0,0.00036715,2]
[341419773,1730871032668,-223.0,0.00036734,2]
[341419774,1730871032677,-150.0,0.00036739,2]
[341419775,1730871032686,-1000.0,0.00036749,2]
[341419776,1730871032695,-223.0,0.00036753,2]
[341419777,1730871032704,-223.0,0.00036773,2]
[341419778,1730871032713,-223.0,0.00036792,2]
[341419779,1730871032723,-150.0,0.00036806,2]
[341419780,1730871032732,-474.89,0.00036808,2]
[341419781,1730871032741,-223.0,0.00036811,2]
[341419782,1730871032751,-223.0,0.0003683,2]
[341419783,1730871032760,-223.0,0.0003685,2]
[341419784,1730871032769,-223.0,0.00036869,2]
[341419785,1730871032780,-162.98,0.00036887,2]
[341419786,1730871032789,-223.0,0.00036888,2]
[341419787,1730871032798,-223.0,0.00036908,2]
[341419788,1730871032808,-166.76,0.00036924,2]
[341419789,1730871032817,-223.0,0.00036927,2]
[341419790,1730871032826,-223.0,0.00036946,2]
[341419791,1730871032835,-150.0,0.00036954,2]
[341419792,1730871032845,-223.0,0.00036965,2]
[341419793,1730871032854,-223.0,0.00036985,2]
[341419794,1730871032863,-150.0,0.0003699,2]
[341419795,1730871032872,-900.0,0.00037,38]
[341419796,1730871032881,-800.0,0.00037,120]
[341419797,1730871032890,-1000.0,0.00037,7]
[341419798,1730871032900,-1000.0,0.00037,7]
[341419800,1730871032909,-1000.0,0.00037,7]
[341419802,1730871032918,-1000.0,0.00037,7]
[341419805,1730871032927,-1000.0,0.00037,7]
[341419806,1730871032937,-150.0,0.00037008,2]
[341419808,1730871032946,-150.0,0.00037044,2]
[341419810,1730871032956,-150.0,0.00037053,2]
[341419812,1730871032965,-676.34,0.00037058,2]
[341419814,1730871032974,-150.0,0.00037094,2]
[341419816,1730871032983,-389.1012565,0.000371,2]
[341419818,1730871032993,-2500.0,0.0003714,2]
[341419820,1730871033003,-204.22,0.00037142,2]
[341419822,1730871033013,-150.0,0.00037175,2]
[341419825,1730871033025,-150.0,0.00037209,2]
[341419827,1730871033035,-150.0,0.00037238,2]
[341419829,1730871033044,-1483.30879397,0.0003724,5]
[341419831,1730871033053,-150.0,0.0003726,2]
[341419833,1730871033062,-150.0,0.0003727,2]
[341419835,1730871033072,-433.63,0.00037344,120]
[341419837,1730871033083,-150.0,0.00037357,2]
[341419839,1730871033092,-150.0,0.00037362,2]
[341419840,1730871033101,-474.89,0.00037372,2]
[341419842,1730871033110,-1500.0,0.0003739,2]
[341419844,1730871033120,-389.1012565,0.00037407,2]
[341419846,1730871033129,-150.0,0.00037419,2]
[341419848,1730871033138,-150.0,0.00037422,2]
[341419850,1730871033148,-1500.0,0.00037439,2]
[341419852,1730871033158,-150.0,0.00037447,2]
[341419853,1730871033167,-150.0,0.00037482,2]
[341419854,1730871033176,-5126.367,0.000375,35]
[341419855,1730871033186,-150.0,0.00037543,2]
[341419856,1730871033198,-150.0,0.00037592,2]
[341419857,1730871033207,-150.0,0.0003761,2]
[341419858,1730871033217,-2902.96059,0.0003761,2]
[341419859,1730871033227,-1228.41195973,0.0003762,2]
[341419860,1730871033237,-673.48,0.00037649,10]
[341419861,1730871033247,-150.0,0.00037649,2]
[341419862,1730871033256,-150.0,0.00037659,2]
[341419863,1730871033266,-1500.0,0.00037662,2]
[341419864,1730871033280,-150.0,0.00037665,2]
[341419865,1730871033290,-389.1012566,0.00037668,2]
[341419866,1730871033300,-500.0,0.00037671,30]
[341419867,1730871033310,-500.0,0.00037671,31]
[341419868,1730871033319,-500.0,0.00037671,32]
[341419869,1730871033329,-500.0,0.00037671,33]
[341419870,1730871033338,-500.0,0.00037671,34]
[341419871,1730871033347,-500.0,0.00037671,35]
[341419872,1730871033358,-500.0,0.00037671,36]
[341419873,1730871033367,-473.26834753,0.00037671,37]
[341419874,1730871033377,-400.22253466,0.00037707,2]
[341419875,1730871033386,-285.7358,0.00037708,2]
[341419876,1730871033396,-29523.7141,0.00037708,2]
[341419877,1730871033405,-7536.6569,0.00037708,2]
[341419878,1730871033415,-1811.2549,0.00037708,2]
[341419879,1730871033424,-1500.0,0.00037716,2]
[341419880,1730871033433,-2902.96059,0.0003772,2]
[341419881,1730871033442,-150.0,0.00037732,2]
[341419882,1730871033452,-150.0,0.00037764,2]
[341419883,1730871033461,-150.0,0.00037767,2]
[341419884,1730871033471,-330.40126949,0.0003778,2]
[341419885,1730871033484,-508.89953051,0.0003778,2]
[341419886,1730871033494,-1500.0,0.00037793,2]
[341419887,1730871033503,-151.41146315,0.00037794,2]
[341419888,1730871033512,-1500.0,0.00037799,2]
[341419889,1730871033523,-150.0,0.00037799,2]
[341419890,1730871033533,-150.0,0.00037802,2]
[341419891,1730871033543,-500.0,0.00037808,14]
[341419892,1730871033552,-500.0,0.00037808,14]
[341419893,1730871033562,-500.0,0.00037808,14]
[341419894,1730871033571,-500.0,0.00037808,14]
[341419895,1730871033581,-500.0,0.00037808,14]
[341419896,1730871033590,-618.7675188,0.00037808,14]
[341419897,1730871033600,-500.0,0.00037808,14]
[341419898,1730871033609,-500.0,0.00037808,14]
[341419899,1730871033619,-500.0,0.00037808,14]
[341419900,1730871033628,-466.61467656,0.00037808,14]
[341419901,1730871033638,-500.0,0.00037808,14]
[341419902,1730871033647,-500.0,0.00037808,14]
[341419903,1730871033656,-1395.13,0.00037808,14]
[341419904,1730871033666,-500.0,0.00037808,14]
[341419905,1730871033675,-500.0,0.00037808,14]
[341419906,1730871033684,-729.84,0.00037808,7]
[341419907,1730871033693,-500.0,0.00037808,14]
[341419908,1730871033702,-328.75923835,0.00037808,14]
[341419909,1730871033711,-1097.3,0.00037808,14]
[341419910,1730871033721,-500.0,0.00037808,14]
[341419911,1730871033730,-500.0,0.00037808,14]
[341419912,1730871033740,-569.05007638,0.00037808,14]
[341419913,1730871033749,-502.10069603,0.00037808,14]
[341419914,1730871033758,-500.0,0.00037808,14]
[341419915,1730871033767,-500.0,0.00037808,14]
[341419916,1730871033779,-373.68763334,0.00037808,14]
[341419917,1730871033789,-500.0,0.00037808,14]
[341419918,1730871033798,-500.0,0.00037808,14]
[341419919,1730871033807,-500.0,0.00037808,14]
[341419920,1730871033817,-500.0,0.00037808,14]
[341419921,1730871033827,-500.0,0.00037808,14]
[341419922,1730871033836,-500.0,0.00037808,14]
[341419923,1730871033846,-500.0,0.00037808,14]
[341419924,1730871033855,-500.0,0.00037808,14]
[341419925,1730871033865,-639.98123419,0.00037808,14]
[341419926,1730871033874,-151.528371,0.00037808,14]
[341419927,1730871033884,-500.0,0.00037808,14]
[341419928,1730871033893,-504.05567212,0.00037808,14]
[341419929,1730871033903,-173.359933,0.00037808,14]
[341419930,1730871033912,-500.0,0.00037808,14]
[341419931,1730871033921,-500.0,0.00037808,14]
[341419932,1730871033931,-154.296735,0.00037808,14]
[341419933,1730871033940,-500.0,0.00037808,14]
[341419934,1730871033956,-714.19,0.00037808,14]
[341419935,1730871033969,-152.709933,0.00037808,14]
[341419936,1730871033979,-4198.43498523,0.00037808,2]
[341419939,1730871038270,-150.0,0.00036203,2]
[341419940,1730871038281,-150.0,0.00036382,2]
[341419941,1730871038290,-150.0,0.00036388,2]
[341419942,1730871038299,-150.0,0.00036397,2]
[341419943,1730871038309,-150.0,0.00036433,2]
[341419944,1730871038318,-72.49017547,0.00036433,2]
[341419945,1730871038340,-77.50982453,0.00036433,2]
[341419946,1730871038350,-150.0,0.00036614,2]
[341419947,1730871038359,-150.0,0.00036642,2]
[341419948,1730871038368,-150.0,0.00036655,2]
[341419949,1730871038378,-150.0,0.00036687,2]
[341419950,1730871038387,-150.0,0.00036776,2]
[341419951,1730871038396,-150.0,0.00036992,2]
[341419952,1730871038405,-150.0,0.0003704,2]
[341419953,1730871038414,-150.0,0.00037139,2]
[341419954,1730871038423,-150.0,0.00037191,2]
[341419955,1730871038432,-198.99650224,0.000372,103]
[341419956,1730871038442,-150.0,0.0003721,2]
[341419957,1730871038450,-150.0,0.00037233,2]
[341419958,1730871038460,-150.0,0.00037291,2]
[341419959,1730871038469,-150.0,0.00037306,2]
[341419960,1730871038478,-150.0,0.00037404,2]
[341419961,1730871038487,-150.0,0.00037474,2]
[341419962,1730871038499,-150.0,0.00037511,2]
[341419963,1730871038509,-150.0,0.00037547,2]
[341419964,1730871038519,-150.0,0.00037574,2]
[341419965,1730871038530,-150.0,0.00037594,2]
[341419966,1730871038539,-150.0,0.00037685,2]
[341419967,1730871038548,-2384.41501477,0.00037808,2]
[341419968,1730871038557,-517.15104564,0.00037808,14]
[341419969,1730871038567,-500.0,0.00037808,14]
[341419970,1730871038576,-508.25,0.00037808,14]
[341419971,1730871038588,-515.99040523,0.00037808,14]
[341419972,1730871038597,-500.0,0.00037808,14]
[341419973,1730871038606,-500.0,0.00037808,14]
[341419974,1730871038615,-400.57100843,0.00037808,14]
[341419975,1730871038624,-789.49,0.00037808,14]
[341419976,1730871038633,-585.34,0.00037808,14]
[341419977,1730871038642,-500.0,0.00037808,14]
[341419978,1730871038651,-599.50973387,0.00037808,14]
[341419979,1730871038661,-500.0,0.00037808,14]
[341419980,1730871038670,-573.54,0.00037808,14]
[341419981,1730871038679,-500.0,0.00037808,14]
[341419982,1730871038688,-500.0,0.00037808,14]
[341419983,1730871038697,-500.0,0.00037808,14]
[341419984,1730871038706,-500.0,0.00037808,14]
[341419985,1730871038715,-500.0,0.00037808,14]
[341419986,1730871038725,-500.0,0.00037808,14]
[341419987,1730871038733,-531.61,0.00037808,14]
[341419988,1730871038742,-515.29272285,0.00037808,14]
[341419989,1730871038751,-143.12084828,0.00037808,14]
[341419990,1730871038763,-358.25947178,0.00037808,14]
[341419991,1730871038772,-500.0,0.00037808,14]
[341419993,1730871038782,-521.81551436,0.00037808,14]
[341419995,1730871038791,-500.0,0.00037808,14]
[341419997,1730871038801,-500.0,0.00037808,14]
[341419999,1730871038810,-500.0,0.00037808,7]
[341420001,1730871038819,-500.0,0.00037808,14]
[341420003,1730871038829,-500.0,0.00037808,14]
[341420005,1730871038839,-353.68045629,0.00037808,14]
[341420007,1730871038851,-149.01445185,0.00037808,14]
[341420009,1730871038861,-500.0,0.00037808,14]
[341420011,1730871038870,-350.34346977,0.00037808,14]
[341420013,1730871038881,-149.65653023,0.00037808,14]
[341420015,1730871038891,-467.37622847,0.00037808,14]
[341420017,1730871038901,-122.9672413,0.00037808,14]
[341420019,1730871038914,-377.0327587,0.00037808,14]
[341420021,1730871038924,-4.30189498,0.00037808,14]
[341420024,1730871038936,-782.11810502,0.00037808,14]
[341420026,1730871038945,-500.0,0.00037808,14]
[341420028,1730871038956,-187.231642,0.00037808,14]
[341420030,1730871038966,-497.54709851,0.00037808,14]
[341420032,1730871038981,-2.45290149,0.00037808,14]
[341420034,1730871038991,-500.0,0.00037808,14]
[341420036,1730871039001,-215.18,0.00037808,2]
[341420038,1730871039009,-361.8,0.00037808,2]
[341420040,1730871039018,-360.2,0.00037808,2]
[341420042,1730871039027,-150.0,0.00037824,2]
[341420044,1730871039036,-500.0,0.0003783,3]
[341420046,1730871039045,-150.0,0.00037834,2]
[341420048,1730871039054,-500.0,0.00037838,3]
[341420050,1730871039064,-500.0,0.00037847,3]
[341420052,1730871039074,-150.0,0.00037849,2]
[341420054,1730871039084,-150.0,0.0003785,2]
[341420056,1730871039095,-150.0,0.00037851,2]
[341420058,1730871039104,-500.0,0.00037856,3]
[341420060,1730871039113,-150.0,0.00037858,2]
[341420062,1730871039123,-150.0,0.00037858,2]
[341420064,1730871039134,-500.0,0.00037865,3]
[341420066,1730871039143,-150.0,0.00037869,2]
[341420068,1730871039153,-150.0,0.00037873,2]
[341420070,1730871039163,-500.0,0.00037874,3]
[341420072,1730871039172,-150.0,0.00037878,2]
[341420074,1730871039182,-5100.0,0.0003788,28]
[341420076,1730871039194,-1892.26457134,0.0003788,5]
[341420078,1730871039207,-954.046,0.0003788,5]
[341420162,1730871040094,-585.6999995,0.0003788,5]
[341420171,1730871040171,-1617.98942916,0.0003788,5]
[341420173,1730871040181,-2902.96058,0.0003788,2]
[341420174,1730871040191,-500.0,0.00037882,3]
[341420176,1730871040203,-5800.0,0.00037883,2]
[341420178,1730871040212,-150.0,0.00037884,2]
[341420180,1730871040221,-500.0,0.00037889,14]
[341420182,1730871040230,-504.61366884,0.00037889,14]
[341420184,1730871040240,-387.27994321,0.00037889,14]
[341420186,1730871040249,-502.33036948,0.00037889,14]
[341420188,1730871040259,-500.0,0.00037889,14]
[341420190,1730871040270,-500.0,0.00037889,14]
[341420192,1730871040281,-212.51779538,0.00037889,14]
[341420195,1730871040291,-500.0,0.00037889,14]
[341420196,1730871040299,-302.30821393,0.00037889,14]
[341420199,1730871040315,-197.69178607,0.00037889,14]
[341420201,1730871040325,-501.93680382,0.00037889,14]
[341420203,1730871040336,-500.0,0.00037889,14]
[341420205,1730871040346,-500.0,0.00037889,14]
[341420207,1730871040356,-500.0,0.00037889,14]
[341420209,1730871040365,-500.0,0.00037889,14]
[341420211,1730871040375,-150.0,0.00037889,14]
[341420213,1730871040384,-944.10015776,0.00037889,14]
[341420265,1730871043256,-14.02812861,0.00037889,14]
[341420271,1730871043310,-41.87171363,0.00037889,14]
[341420272,1730871043319,-500.0,0.00037889,14]
[341420273,1730871043329,-458.22868637,0.00037889,2]
[341420274,1730871043573,-5027.42225697,0.00037889,2]
[341420285,1730871046250,-500.0,0.00037889,14]
[341420286,1730871046259,-13.47505769,0.00037889,2]
[341420287,1730871046272,-846.28239897,0.00037889,2]
[341420288,1730871046285,-1432.11516853,0.0003789,2]
[341420289,1730871046977,-2104.16472226,0.0003789,2]
[341420290,1730871046989,-33107.55050921,0.0003789,2]
[341420291,1730871047000,-150.0,0.00037891,2]
[341420292,1730871047009,-500.0,0.00037891,3]
[341420293,1730871047019,-5800.0,0.00037892,2]
[341420294,1730871047031,-150.0,0.00037895,2]
[341420295,1730871047041,-500.0,0.00037899,14]
[341420296,1730871047050,-729.84,0.00037899,7]
[341420297,1730871047059,-500.0,0.00037899,14]
[341420298,1730871047069,-521.05,0.00037899,14]
[341420300,1730871047078,-156.47,0.00037899,14]
[341420302,1730871047088,-500.0,0.00037899,14]
[341420304,1730871047097,-500.0,0.00037899,14]
[341420306,1730871047106,-1826.94144531,0.000379,2]
[341420308,1730871047115,-500.0,0.000379,3]
[341420310,1730871047124,-2595.39163399,0.000379,2]
[341420312,1730871047133,-4841.08259256,0.000379,15]
[341420314,1730871047142,-8541.56547254,0.000379,7]
[341420315,1730871047151,-150.0,0.0003792,2]
[341420318,1730871047162,-150.0,0.00037935,2]
[341420319,1730871047171,-474.89,0.00037936,2]
[341420322,1730871047180,-150.0,0.00037943,2]
[341420324,1730871047190,-150.0,0.00037946,2]
[341420325,1730871047204,-150.0,0.0003796,2]
[341420327,1730871047213,-150.0,0.00037961,2]